Cogmind - Beta 17 *** ADVENTURER MODE // 2026.07.07 @ 21:53:16 Player: D4-LTA Result: Destroyed by EXE-6 with Concept XC Strikerail Performance ------------- Evolutions (8) 4000 Regions Visited (23) 4600 Robots Destroyed (268) 1340 Value Destroyed (13602) 13602 Prototype IDs (51) 1020 Alien Tech Used (1) 200 Bonus (7646) 7646 TOTAL SCORE: 32408 Bonus ------- High Alert Combat Kills 1146 Follower Combat Kills 1533 Entered DSFs 500 Network Hubs Disabled 200 Registered with UFD 300 Met Optimus in HQ 500 Met Imprinter 300 Built Enhanced Grunts 300 Met R17 at Cetus 500 Met R17 at Research 2000 Scanned by Researcher 500 Friendly Fire -133 Cogmind --------- Core Integrity 0/1450 Matter 127/300 Energy 100/100 System Corruption 20% Temperature Cool (0) Movement Core (100) Ox1 Location -2/Protoforge Parts ------- > --- POWER (2) -------- (None) > --- PROPULSION (6) --- (None) > --- UTILITY (12) ----- Experimental Heat Sink > --- WEAPON (3) ------- Advanced Remote Datajack > --- INVENTORY (5) ---- (None) Peak State ------------ > --- POWER ------------ Particle Reactor Quantum Reactor > --- PROPULSION ------- Armored Heavy Treads Centrium Heavy Treads Biometal Heavy Treads > --- UTILITY ---------- Advanced Cryofiber Web Experimental Heat Sink Experimental Heat Sink Advanced Cooling System High-capacity Storage Unit Enhanced Optical Array Active Sensor Suite Advanced Weapon Cycler Layered Medium Armor Plating Layered Medium Armor Plating > --- WEAPON ----------- Nova Cannon Enhanced Nova Cannon Advanced KE Penetrator > --- INVENTORY -------- Quantum Reactor Medium Treads Heavy Siege Treads Advanced Heat Sink Advanced Heat Sink Advanced Heat Sink Experimental Heat Sink Advanced Particle Charger Heavy Armor Plating Experimental Thermal Shield Terrabomb Precision Phase Gun Heavy Neutron Cannon Railgun Advanced KE Penetrator Advanced KE Penetrator Advanced Remote Datajack Improved Plasma Cutter [Rating: 185] Favorites ----------- Power F-cell Engine Engine F-cell Engine Power Core Fusion Compressor Reactor Quantum Reactor Propulsion Improved Medium Treads Treads Improved Medium Treads Utility High-capacity Storage Unit Device Advanced Cooling System Storage High-capacity Storage Unit Processor Enhanced Optical Array Protection Heavy Reactive Plating Weapon Advanced Beam Cannon Energy Gun Heavy Laser Energy Cannon Advanced Beam Cannon Ballistic Gun Heavy Assault Rifle Ballistic Cannon Heavy Flak Cannon Launcher Heavy Rocket Launcher Special Weapon Plasma Cutter Impact Weapon Impact Mace Slashing Weapon Vibroblade Piercing Weapon Enhanced Force Lance Special Melee Weapon Datajack Build | -11 -10 -10 -9 -9 -9 -9 -6 -6 -6 -6 -5 -5 -5 -5 -5 -5 -4 -4 -3 -3 -2 -2 -2 ------- Run | Yrd Mat Min Mat Sto Rec Scr Fac Low Low Zio Pro Fac Ext Cet Arc Hub Fac DSF Res Qua Res Tes Frg Slots Evolved 16 | . . . 2 . . . 6 . . . . 2 . . . . 2 . 2 . 2 . . Power 1 | . . . . . . . . . . . . . . . . . . . . . 1 . . Propulsion 4 | . . . . . . . 2 . . . . . . . . . 1 . 1 . . . . Utility 10 | . . . 2 . . . 3 . . . . 2 . . . . 1 . 1 . 1 . . Weapon 1 | . . . . . . . 1 . . . . . . . . . . . . . . . . Parts Attached 166 | 8 4 . 7 16 4 3 30 . 3 2 3 4 9 5 . 3 2 4 2 2 28 11 16 Power 19 | 2 1 . 1 3 . . 2 . . . . . . 1 . . . . . . 5 2 2 Engine 8 | 2 1 . 1 3 . . 1 . . . . . . . . . . . . . . . . Core 1 | . . . . . . . 1 . . . . . . . . . . . . . . . . Reactor 10 | . . . . . . . . . . . . . . 1 . . . . . . 5 2 2 Propulsion 34 | 2 . . . 7 . . 6 . 1 . 1 . 5 1 . 1 1 1 2 . 4 1 1 Treads 34 | 2 . . . 7 . . 6 . 1 . 1 . 5 1 . 1 1 1 2 . 4 1 1 Leg . | . . . . . . . . . . . . . . . . . . . . . . . . Wheel . | . . . . . . . . . . . . . . . . . . . . . . . . Hover . | . . . . . . . . . . . . . . . . . . . . . . . . Flight . | . . . . . . . . . . . . . . . . . . . . . . . . Utility 64 | 2 3 . 1 2 2 3 13 . . 2 2 4 1 1 . 1 1 1 . 2 10 3 10 Device 35 | 1 1 . . 1 . 1 7 . . . 2 3 1 . . 1 1 1 . 1 5 2 7 Storage 6 | 1 1 . . . 2 1 1 . . . . . . . . . . . . . . . . Processor 8 | . 1 . 1 . . . 3 . . 2 . . . . . . . . . . 1 . . Hackware . | . . . . . . . . . . . . . . . . . . . . . . . . Protection 15 | . . . . 1 . 1 2 . . . . 1 . 1 . . . . . 1 4 1 3 Artifact . | . . . . . . . . . . . . . . . . . . . . . . . . Weapon 49 | 2 . . 5 4 2 . 9 . 2 . . . 3 2 . 1 . 2 . . 9 5 3 Energy Gun 13 | 1 . . 1 1 1 . 1 . 1 . . . . 1 . 1 . . . . 1 2 2 Energy Cannon 12 | . . . . 1 . . 4 . . . . . 2 . . . . . . . 3 2 . Ballistic Gun 11 | 1 . . 2 2 . . 2 . . . . . . 1 . . . 1 . . 2 . . Ballistic Cannon 3 | . . . . . . . . . 1 . . . . . . . . 1 . . 1 . . Launcher 2 | . . . 1 . . . 1 . . . . . . . . . . . . . . . . Special Weapon 4 | . . . 1 . . . . . . . . . 1 . . . . . . . . 1 1 Impact Weapon 1 | . . . . . . . 1 . . . . . . . . . . . . . . . . Slashing Weapon 1 | . . . . . . . . . . . . . . . . . . . . . 1 . . Piercing Weapon 1 | . . . . . . . . . . . . . . . . . . . . . 1 . . Special Melee Weapon 1 | . . . . . 1 . . . . . . . . . . . . . . . . . . Unidentified Prototypes 20 | . . . . 3 . . 1 . . 1 . . 1 4 . . . . . 1 6 1 2 Parts Lost 56 | . . . . . . . 12 . 2 . 1 . 1 . . . . . . . 15 5 20 Power 6 | . . . . . . . 1 . . . . . . . . . . . . . 2 1 2 Propulsion 13 | . . . . . . . 5 . . . . . 1 . . . . . . . 3 . 4 Utility 23 | . . . . . . . 3 . . . 1 . . . . . . . . . 7 3 9 Weapon 14 | . . . . . . . 3 . 2 . . . . . . . . . . . 3 1 5 Highest Loss Streak 17 | . . . . . . . 5 . 2 . 1 . 1 . . . . . . . 10 3 17 To Critical Strikes 2 | . . . . . . . . . . . . . . . . . . . . . . . 2 Average Backups 15 | 3 7 10 9 10 13 14 16 17 16 17 16 17 17 17 17 17 16 16 16 16 16 11 13 Power . | . 1 1 1 1 1 . . . . . . . . 1 1 1 1 1 1 1 . 1 1 Propulsion 2 | 1 2 3 2 2 2 3 2 3 2 3 3 3 3 2 2 3 3 3 3 3 3 1 1 Utility 4 | . 1 2 1 2 3 3 6 7 7 7 6 6 5 5 5 5 5 5 5 4 2 2 4 Weapon 4 | . 1 3 4 4 4 5 4 5 4 5 5 5 5 7 6 5 5 5 5 5 6 4 4 Tool/Special . | . . . . . . . . . . . . . . . . . . . . . . . . Unused Backups 47 | . 2 2 4 7 1 1 6 . . 1 . . 5 6 . 2 . . 1 2 3 . 4 Power 5 | . . . . 1 . . . . . . . . 3 1 . . . . . . . . . Propulsion 13 | . 1 . 3 3 . . . . . . . . 1 1 . 2 . . . . 2 . . Utility 15 | . 1 1 . . 1 1 6 . . 1 . . . 2 . . . . . . . . 2 Weapon 13 | . . 1 1 3 . . . . . . . . 1 2 . . . . 1 1 1 . 2 Tool/Special 1 | . . . . . . . . . . . . . . . . . . . . 1 . . . Average Slot Usage (%) 91 | . 98 100 99 99 99 98 99 100 99 100 100 93 94 93 88 88 88 84 78 75 74 71 67 Engine 5 | . 14 14 11 11 11 10 6 6 6 6 6 5 5 . . . . . . . . . . Reactor 1 | . . . . . . . . . . . . . . 4 5 5 5 5 4 4 6 5 6 Treads 21 | . 27 28 22 21 22 21 25 26 25 26 26 23 23 22 17 17 21 21 21 19 15 13 11 Device 10 | . 9 . 12 7 . . 16 13 13 13 13 12 17 11 11 11 14 13 13 14 15 22 23 Storage 7 | . 14 14 11 11 11 10 6 6 6 6 6 5 5 5 5 5 5 5 4 4 4 4 3 Processor 16 | . 4 14 20 22 22 22 17 20 20 20 20 17 17 17 17 17 15 13 9 9 8 7 3 Protection 7 | . . . . 3 10 10 5 6 6 6 6 9 5 10 11 11 10 10 9 8 9 4 5 Energy Gun 2 | . 13 14 10 5 . . 3 5 5 6 6 3 . . . . . . . . . 1 . Energy Cannon 6 | . . . . 5 10 . 7 13 12 12 12 10 11 10 11 10 10 9 9 9 7 5 7 Ballistic Gun 5 | . 14 14 11 10 11 10 6 . . . . . . 4 5 5 5 5 4 4 4 4 3 Special Melee Weapon 2 | . . . . . . 11 . . . . . . . . . . . . . . . . . Peak Build Rating 185 | 7 8 8 13 21 20 20 59 59 64 69 68 81 86 109 109 113 124 141 156 157 180 182 185 Average Rating 75 | 5 7 8 11 17 19 17 47 59 62 65 66 77 80 98 109 111 123 129 153 156 170 169 155 On Entrance 75 | . 7 8 8 13 19 18 19 59 59 63 66 68 79 86 109 109 113 124 141 156 157 165 166 Avg Prop Armor Cover (%) . | . . . . . . . . . . . . . . . . . . . . . . . . Naked Turns 23 | . . . . . . . . . . . . . . . . . . . . . . . 23 Heaviest Build 157 | 13 18 16 22 34 40 37 77 80 80 77 79 117 117 129 129 129 130 132 133 133 157 130 135 Greatest Support 225 | 40 40 40 40 46 43 43 103 103 113 113 118 118 120 140 140 140 164 169 212 212 225 225 215 Greatest Overweight (x) 1 | . . . . . . . . . . . . . 1 1 . . . . . . . . 1 Average Overweight (x) . | . . . . . . . . . . . . . . . . . . . . . . . . Largest Inventory Capacity 20 | 8 10 10 10 10 15 15 20 20 20 20 20 20 20 20 20 20 20 20 20 20 20 20 20 Average Capacity 17 | 7 8 10 10 10 14 14 19 20 20 20 20 20 20 20 20 20 20 20 20 20 20 20 18 Most Carried 20 | 4 10 10 10 10 15 15 20 20 20 20 20 20 20 20 20 20 19 20 20 20 20 15 20 Average Carried 16 | 3 7 9 9 9 13 14 17 20 19 19 19 19 19 19 19 19 18 18 18 19 19 12 14 Final Capacity 20 | 8 10 10 10 10 15 15 20 20 20 20 20 20 20 20 20 20 20 20 20 20 20 20 5 Final Carried 20 | 4 10 10 10 10 15 15 20 20 20 20 20 20 20 20 20 20 18 20 20 20 12 13 . Class Distribution -------------------- 27% | Scavenger-Tank 25% | Skirmisher 21% | Commander-Mutant 14% | Mutant 8% | Scavenger-Skirmisher Dominant Class ---------------- Mutant | -10/Materials Mutant | -10/Mines Mutant | -9/Materials Mutant | -9/Storage Mutant | -9/Recycling Commander-Mutant | -9/Scraptown Scavenger-Skirmisher | -6/Factory Skirmisher | -6/Lower Caves Skirmisher | -6/Lower Caves Skirmisher | -6/Zion Skirmisher | -5/Proximity Caves Skirmisher | -5/Factory Skirmisher | -5/Extension Scavenger-Skirmisher | -5/Cetus Scavenger-Tank | -5/Archives Scavenger-Tank | -5/Hub_04(d) Scavenger-Tank | -4/Factory Scavenger-Tank | -4/DSF Scavenger-Tank | -3/Research Scavenger-Tank | -3/Quarantine Scavenger-Tank | -2/Research Scavenger-Skirmisher | -2/Testing Scavenger-Tank | -2/Protoforge Resources | -11 -10 -10 -9 -9 -9 -9 -6 -6 -6 -6 -5 -5 -5 -5 -5 -5 -4 -4 -3 -3 -2 -2 -2 ----------- Run | Yrd Mat Min Mat Sto Rec Scr Fac Low Low Zio Pro Fac Ext Cet Arc Hub Fac DSF Res Qua Res Tes Frg Matter Collected 5529 | 212 171 . 148 301 96 10 1080 108 197 50 150 283 299 147 16 117 . 224 77 380 819 203 441 Remotely . | . . . . . . . . . . . . . . . . . . . . . . . . Salvage Created 14812 | 48 655 . 544 933 458 . 1699 26 103 . 298 247 813 157 101 886 . 675 134 1448 3692 826 1069 Parts 626 | 7 32 . 31 63 18 . 66 4 2 . 8 14 19 4 1 28 . 39 2 87 118 39 44 Haulers Intercepted 8 | . 1 . 1 5 . . . . . . . . . . . . . . . . 1 . . Recyclers Shooed 13 | . 2 . 1 2 1 . 3 . . . . . 1 . . . . . . 1 2 . . Parts Field Recycled . | . . . . . . . . . . . . . . . . . . . . . . . . Retrieved Matter . | . . . . . . . . . . . . . . . . . . . . . . . . Parts Self-Destructed 11 | . . . . . . . . 3 2 . 6 . . . . . . . . . . . . Prevented 3 | . . . . . . . . 1 . . 2 . . . . . . . . . . . . Parts Restored . | . . . . . . . . . . . . . . . . . . . . . . . . Kills | -11 -10 -10 -9 -9 -9 -9 -6 -6 -6 -6 -5 -5 -5 -5 -5 -5 -4 -4 -3 -3 -2 -2 -2 ------- Run | Yrd Mat Min Mat Sto Rec Scr Fac Low Low Zio Pro Fac Ext Cet Arc Hub Fac DSF Res Qua Res Tes Frg Combat Hostiles Destroyed 207 | . 16 . 10 14 5 . 28 3 4 . 10 7 8 3 1 11 . 8 1 20 36 10 12 Melee 1 | . . . . . . . . . 1 . . . . . . . . . . . . . . Guns 80 | . 16 . 7 8 2 . 14 . . . 1 1 . . 1 2 . 3 1 3 14 5 2 Cannons 94 | . . . . 5 3 . 9 1 1 . 4 5 7 3 . 7 . 5 . 17 14 5 8 AOE 16 | . . . 3 . . . 4 2 . . 5 1 . . . . . . . . . . 1 Classes Destroyed 22 | 1 5 . 2 2 2 . 2 . 1 . 1 . . . . . . 2 . 2 1 . 1 Worker 7 | . 1 . . . . . . . . . . 1 . . . . . . . 2 3 . . Builder 8 | . . . . 1 . . 1 . . . . . 1 . . 1 . . . . 4 . . Tunneler 4 | 4 . . . . . . . . . . . . . . . . . . . . . . . Hauler 8 | . 1 . 1 5 . . . . . . . . . . . . . . . . 1 . . Recycler 13 | . . . 3 1 3 . 1 . . . . . 2 . . 1 . . . . 2 . . Mechanic 3 | . . . . . . . . . . . . . . . . . . . . 1 1 . 1 Operator 2 | . . . . 1 . . . . . . . . . . . . . . . . . . 1 Drone 2 | . . . . . . . . . . . 2 . . . . . . . . . . . . Watcher 13 | . 1 . 1 2 . . 2 . . . . . 3 . . . . . 1 1 1 . 1 Swarmer 22 | . 3 . 7 . . . 4 3 . . 2 . . . . . . . . 3 . . . Grunt 74 | . 13 . 2 10 . . 16 . 2 . 5 3 6 . . 2 . . . . 8 4 3 Brawler 3 | . . . . . . . . . 1 . . . . . . 1 . . . . 1 . . Duelist 3 | . . . . . 1 . . . . . . . . . . 1 . . . . 1 . . Researcher 2 | . . . . . . . . . . . . . . . . . . . . 2 . . . Sentry 25 | . . . 1 4 3 . 3 . . . . . 2 . 1 3 . . 1 . 2 3 2 Specialist 8 | . . . . . . . . . . . . . . . . . . 3 . . 5 . . Hunter 25 | . . . . . . . 1 . . . . . . . . 2 . 2 . 8 10 . 2 Programmer 33 | . . . . . 1 . 3 . 1 . 1 4 . . . 1 . 2 . 9 7 2 2 Heavy 2 | . . . . . . . . . . . . . . . . . . 1 . . 1 . . Q-Series 1 | . . . . . . . . . . . . . . . . . . . . . 1 . . Behemoth 2 | . . . . . . . 1 . . . . . . . . 1 . . . . . . . Cetus Guard 3 | . . . . . . . . . . . . . . 3 . . . . . . . . . Hotshot 2 | . . . . . . . . . . . . . . . . . . . . . . . 2 Executioner 1 | . . . . . . . . . . . . . . . . . . . . . . . 1 Protovariant X 1 | . . . . . . . . . . . . . . . . . . . . . . 1 . Guerrilla 1 | . . . . . . . . . . . . . . . . 1 . . . . . . . Best Kill Streak 10 | 1 10 . 6 4 2 . 4 3 3 . 5 6 2 3 1 4 . 5 1 6 10 5 4 Combat Bots Only 10 | . 10 . 5 4 2 . 4 3 3 . 5 5 2 3 1 3 . 5 1 5 10 5 3 Max Kills in Single Turn 4 | 1 1 . 3 1 1 . 4 2 1 . 2 2 2 1 1 2 . 1 1 2 3 1 2 Gunslinging . | . . . . . . . . . . . . . . . . . . . . . . . . Exploded 4 | . . . 3 . . . 4 2 . . 2 1 . . . . . . . . . . 1 Melee 1 | . . . . . . . . . 1 . . . . . . . . . . . . . . Uniques/NPCs Destroyed . | . . . . . . . . . . . . . . . . . . . . . . . . Combat | -11 -10 -10 -9 -9 -9 -9 -6 -6 -6 -6 -5 -5 -5 -5 -5 -5 -4 -4 -3 -3 -2 -2 -2 -------- Run | Yrd Mat Min Mat Sto Rec Scr Fac Low Low Zio Pro Fac Ext Cet Arc Hub Fac DSF Res Qua Res Tes Frg Hostile Shots Fired 1784 | . 79 . 26 50 15 . 187 6 24 . 20 46 21 15 2 13 . 39 3 196 630 86 326 Missed 493 | . 20 . 5 15 4 . 64 5 6 . 7 16 10 2 . 2 . 13 1 48 173 24 78 Hits 1291 | . 59 . 21 35 11 . 123 1 18 . 13 30 11 13 2 11 . 26 2 148 457 62 248 Melee 13 | . . . . . 4 . . . 2 . . . . . . . . . . . 6 . 1 Projectile 1278 | . 59 . 21 35 7 . 123 1 16 . 13 30 11 13 2 11 . 26 2 148 451 62 247 AOE 1 | . . . . . . . 1 . . . . . . . . . . . . . . . . Critical Strikes 63 | . . . . 1 . . 6 . 1 . . 2 1 2 . . . . . 6 17 6 21 Part Disruptions 1 | . . . . . . . . . . . . . . . . . . 1 . . . . . Damage Taken 20131 | . 513 . 174 330 185 . 2058 14 296 . 210 525 194 111 23 187 . 265 21 1211 6636 1737 5441 Core 2066 | . 136 . 25 56 11 . 233 . 25 . 12 16 16 . . . . 8 9 38 276 119 1086 Absorbed by Shields 103 | . . . . . . . 43 . . . . . . 60 . . . . . . . . . Reduced by Siege Mode 1278 | . . . . . . . . . . . . . . . . . . 5 . 118 885 115 155 Ignored by Resistances 8080 | . 158 . 53 101 49 . 581 4 79 . 58 145 113 267 35 109 . 301 32 1202 2426 460 1907 Regen/Repaired (Parts) 1609 | . 212 . . 98 . . 111 . . . . 164 . . . . . . . 566 . . 458 Core Remaining (%) 83 | 100 . 45 . . . 77 . . . . 68 . . . . 96 . 99 . 96 . . . Volleys Fired 754 | 15 51 . 34 63 18 . 96 4 9 . 13 18 24 10 4 23 . 23 14 67 150 45 73 Largest 3 | 1 2 . 2 2 2 . 3 2 3 . 3 3 3 3 3 3 . 3 3 3 3 3 3 Hottest 268 | 50 70 . 76 91 91 . 206 137 206 . 206 181 181 169 160 160 . 160 160 160 236 268 268 Shots Fired 1756 | 15 102 . 67 125 30 . 261 5 19 . 38 43 70 26 6 69 . 47 28 165 374 105 161 Gun 838 | 15 102 . 66 102 13 . 154 . 4 . 12 8 . 3 4 23 . 24 7 49 152 56 44 Cannon 885 | . . . . 22 17 . 99 2 12 . 22 35 69 22 2 46 . 23 21 112 222 48 111 Launcher 20 | . . . 1 1 . . 8 3 3 . 4 . . . . . . . . . . . . Special 13 | . . . . . . . . . . . . . 1 1 . . . . . 4 . 1 6 Kinetic 621 | 2 51 . 33 62 13 . 107 . 1 . 2 17 23 7 4 23 . 24 7 49 117 35 44 Thermal 1069 | 13 51 . 33 62 17 . 133 1 10 . 25 25 35 18 2 46 . 23 21 112 257 69 116 Explosive 20 | . . . 1 1 . . 8 3 3 . 4 . . . . . . . . . . . . Electromagnetic 38 | . . . . . . . 13 1 5 . 7 1 11 . . . . . . . . . . Robot Hit Streak 65 | 12 22 . 24 34 30 . 43 20 22 . 15 41 28 27 33 23 . 12 9 28 65 39 23 Robot Miss Streak 4 | 1 1 . 3 3 . . 3 . 1 . 3 2 2 1 . 2 . 2 1 2 4 1 2 Penetration Max 1 | . . . . . . . . . . . . . . . . 1 . 1 . 1 1 1 1 Secondary Targets 1 | . 1 . . . . . . . . . . . . . . . . . . . . . . Max Gunslinging Chain 1 | . 1 . . . . . . . . . . . . . . . . . . . . . . Shots Hit Robots 1369 | 13 91 . 53 95 29 18 220 1 20 . 24 32 46 23 6 46 . 40 16 128 285 77 106 Core Hits 600 | 4 38 . 23 36 11 . 91 5 7 . 20 32 53 16 2 22 . 20 4 50 95 26 45 Critical Kills 23 | . . . . 1 1 . . . . . . . 1 . 1 2 . 2 . 2 9 2 2 Critical Parts Destroyed 24 | . . . . . . . . . 1 . . . . . . 1 . 5 . 3 7 1 6 Critical Strikes 69 | 1 5 . 4 6 1 . 1 . 1 . . . 2 . 1 4 . 7 . 5 17 5 9 Burn 19 | 1 5 . 4 5 . . 1 . . . . . . . . . . . . . 1 2 . Meltdown 9 | . . . . 1 . . . . . . . . 1 . . 1 . . . . 5 . 1 Destroy 39 | . . . . . 1 . . . . . . . . . 1 3 . 7 . 5 11 3 8 Corrupt 1 | . . . . . . . . . . . . . 1 . . . . . . . . . . Smash 1 | . . . . . . . . . 1 . . . . . . . . . . . . . . Melee Attacks 37 | . . . . . 2 18 9 . 6 . . 2 . . . . . . . . . . . Impact 8 | . . . . . . . 1 . 6 . . 1 . . . . . . . . . . . Slashing . | . . . . . . . . . . . . . . . . . . . . . . . . Piercing . | . . . . . . . . . . . . . . . . . . . . . . . . Sneak Attacks 28 | . . . . . 2 17 8 . . . . 1 . . . . . . . . . . . Combat Hostiles . | . . . . . . . . . . . . . . . . . . . . . . . . Follow-up Attacks . | . . . . . . . . . . . . . . . . . . . . . . . . Damage Inflicted 38443 | 195 991 . 755 1383 538 . 4461 320 988 . 1214 976 1645 804 166 1649 . 1341 480 4047 9573 2598 4319 Guns 14020 | 169 979 . 608 960 195 . 2348 . 44 . 124 106 . 74 102 436 . 676 176 1351 3643 1198 831 Cannons 20947 | . . . . 382 288 . 1763 27 240 . 362 701 1567 730 64 1128 . 665 304 2696 5807 1400 2823 Explosions 2708 | . . . 142 . . . 304 293 453 . 728 169 . . . . . . . . . . 619 Melee 251 | . . . . . . . . . 251 . . . . . . . . . . . . . . Ramming 475 | 26 12 . 5 41 55 . 46 . . . . . 78 . . 85 . . . . 123 . 4 Kinetic 11572 | 17 372 . 208 422 195 . 1549 . 28 . 74 514 675 239 102 436 . 676 176 1351 2958 749 831 Thermal 23413 | 152 607 . 400 920 288 . 2427 . 152 . 327 293 600 565 64 1128 . 665 304 2696 6492 1849 3484 Explosive 1873 | . . . 142 . . . 157 293 453 . 659 169 . . . . . . . . . . . Electromagnetic 859 | . . . . . . . 282 27 104 . 154 . 292 . . . . . . . . . . Impact 251 | . . . . . . . . . 251 . . . . . . . . . . . . . . Slashing . | . . . . . . . . . . . . . . . . . . . . . . . . Piercing . | . . . . . . . . . . . . . . . . . . . . . . . . Highest Corruption 20 | . . . . . . . . . . . . 1 . . . . . 1 4 8 15 16 20 Average Corruption 10 | . . . . . . . . . . . . 1 . . . . . 1 4 6 9 15 16 Corruption Purged 1 | . . . . . . . . . . . . 1 . . . . . . . . . . . Corruption Blocked . | . . . . . . . . . . . . . . . . . . . . . . . . Effects 218 | . . . . . . . . . . . . 1 . . . . . . 12 49 55 35 66 Message Errors 49 | . . . . . . . . . . . . 1 . . . . . . 1 18 11 6 12 Matter Fused 38 | . . . . . . . . . . . . . . . . . . . 4 5 10 6 13 Heat Flow Errors 28 | . . . . . . . . . . . . . . . . . . . 2 8 7 7 4 Energy Discharges 22 | . . . . . . . . . . . . . . . . . . . 2 3 8 3 6 Parts Rejected 2 | . . . . . . . . . . . . . . . . . . . . . . 1 1 Parts Fused 3 | . . . . . . . . . . . . . . . . . . . . . 1 1 1 Data Loss (minor) 27 | . . . . . . . . . . . . . . . . . . . 3 4 6 3 11 Data Loss (major) 13 | . . . . . . . . . . . . . . . . . . . . 3 3 2 5 Misfires 8 | . . . . . . . . . . . . . . . . . . . . 2 1 1 4 Alerts 8 | . . . . . . . . . . . . . . . . . . . . 2 2 2 2 Misdirections 2 | . . . . . . . . . . . . . . . . . . . . . . . 2 Weapon Failures 18 | . . . . . . . . . . . . . . . . . . . . 4 6 3 5 Overload Shots 2 | . . . . . . . . . . . . . . . . . . . . . 2 . . Overflow Damage 465 | . . . . . 5 . 24 11 112 . 23 4 65 . . . . . 10 67 134 . 10 Projectiles 305 | . . . . . 5 . 24 . 3 . 10 . 57 . . . . . 10 67 129 . . Explosions 52 | . . . . . . . . 11 14 . 13 4 . . . . . . . . . . 10 Melee 108 | . . . . . . . . . 95 . . . 8 . . . . . . . 5 . . Knockbacks 24 | . . . . . . . . . 2 . 1 10 9 . . . . . . . 2 . . Impact 4 | . . . . . . . . . 2 . . . . . . . . . . . 2 . . Kinetic 19 | . . . . . . . . . . . 1 10 8 . . . . . . . . . . Secondary 1 | . . . . . . . . . . . . . 1 . . . . . . . . . . Self-Inflicted Damage 220 | . . . . . . . 81 . 40 . 24 57 . . . . . . . . . . 18 Shots 6 | . . . . . . . 2 . 1 . 1 1 . . . . . . . . . . 1 Rammed 48 | 7 4 . 2 12 6 . 5 . . . . . 2 . . 4 . . . . 5 . 1 Targets Rammed 51 | 7 5 . 2 13 7 . 5 . . . . . 2 . . 4 . . . . 5 . 1 Kicked . | . . . . . . . . . . . . . . . . . . . . . . . . Crushed 3 | . 1 . . 1 1 . . . . . . . . . . . . . . . . . . Highest Temperature 354 | 40 220 . 29 236 180 . 331 60 258 184 270 333 99 48 24 90 . 122 184 197 354 339 150 Average Temperature 66 | 15 88 . 7 70 71 . 67 35 89 95 83 158 29 18 16 23 . 33 59 86 58 114 37 Received Heat Transfer 3246 | . 300 . 54 243 27 . 1050 . 144 . 48 126 81 . . 66 . . . . 306 108 693 Effects 4 | . 1 . . . . . 1 . . . 1 . . . . . . . . . 1 . . Energy Bleed 3 | . 1 . . . . . 1 . . . 1 . . . . . . . . . . . . Interference 1 | . . . . . . . . . . . . . . . . . . . . . 1 . . Siege Activations 25 | . . . . . . . . . . . . . . 1 . 2 . 2 . 4 10 2 4 Total Turns 741 | . . . . . . . . . . . . . . 1 . 31 . 37 . 179 405 35 53 Longest Duration 151 | . . . . . . . . . . . . . . 1 . 19 . 29 . 92 151 29 17 Martial Activations . | . . . . . . . . . . . . . . . . . . . . . . . . Shielding Activations . | . . . . . . . . . . . . . . . . . . . . . . . . Robots Disrupted . | . . . . . . . . . . . . . . . . . . . . . . . . Combat Hostiles . | . . . . . . . . . . . . . . . . . . . . . . . . Robots Corrupted 3 | . . . . . . . . . 2 . . . 1 . . . . . . . . . . Combat Hostiles 2 | . . . . . . . . . 2 . . . . . . . . . . . . . . Parts Fried 6 | . . . . . . . 3 . 1 . . . 2 . . . . . . . . . . Impact Corruptions 6 | . . . . . . . . . 4 . . . 1 . . . . . . . 1 . . Robots Melted 14 | . . . . 1 . . 1 . . . . . 1 . . 2 . . . . 8 . 1 Combat Hostiles 14 | . . . . 1 . . 1 . . . . . 1 . . 2 . . . . 8 . 1 Parts Melted 61 | 2 5 . 1 6 1 . 6 . . . 2 . 2 . . 6 . 1 . 2 25 1 1 Heat Transferred 32126 | 518 2109 . 1332 2368 518 . 4146 . 259 . 544 481 981 746 87 1425 . 807 385 3182 7468 1998 2772 Parts Sabotaged . | . . . . . . . . . . . . . . . . . . . . . . . . Parts Stolen 1 | . . . . . . . . . 1 . . . . . . . . . . . . . . Parts Stripped . | . . . . . . . . . . . . . . . . . . . . . . . . Power Chain Reactions 5 | . . . . . . . 2 . . . 2 . . . . . . . . . . . 1 Alert | -11 -10 -10 -9 -9 -9 -9 -6 -6 -6 -6 -5 -5 -5 -5 -5 -5 -4 -4 -3 -3 -2 -2 -2 ------- Run | Yrd Mat Min Mat Sto Rec Scr Fac Low Low Zio Pro Fac Ext Cet Arc Hub Fac DSF Res Qua Res Tes Frg Maximum Alert Level 3 | . 1 . . . . . 1 . . . . 2 . . . 1 . 1 . 1 3 2 2 Low Security (%) 64 | 100 97 100 100 100 100 . 71 . . . . . 100 100 100 76 100 46 100 39 33 . 17 Level 1 20 | . 2 . . . . . 28 . . . . 44 . . . 23 . 53 . 60 33 10 25 Level 2 13 | . . . . . . . . . . . . 55 . . . . . . . . 19 89 57 Level 3 1 | . . . . . . . . . . . . . . . . . . . . . 12 . . Level 4 . | . . . . . . . . . . . . . . . . . . . . . . . . Level 5 . | . . . . . . . . . . . . . . . . . . . . . . . . High Security . | . . . . . . . . . . . . . . . . . . . . . . . . Max Security . | . . . . . . . . . . . . . . . . . . . . . . . . Sterilizations 1 | . . . . . . . . . . . . . . . . . . 1 . . . . . Peak Influence 957 | 5 210 31 195 140 41 . 306 . . . . 488 145 127 125 293 106 251 122 391 957 618 613 Initial 488 | . . 31 . 42 14 . . . . . . 488 143 . 22 21 106 52 122 . 49 424 261 Average 175 | . 74 11 74 68 3 . 133 . . . . 404 51 33 89 136 98 188 34 194 338 478 378 Influence Increases 10130 | 20 444 . 318 441 116 . 1118 70 100 . 235 711 661 275 143 639 . 199 79 929 1794 539 1299 Destroy 0b10 Robot/C 4700 | . 320 . 200 280 100 . 600 60 80 . 160 140 400 160 80 320 . 160 20 440 720 200 260 Destroy 0b10 Robot/NC 345 | 20 15 . 25 50 15 . 25 . . . 10 5 30 10 5 25 . 5 5 20 60 . 20 Destroy Leader 966 | . 64 . 34 94 . . 134 10 20 . 20 30 46 . . 102 . 30 12 102 184 20 64 Allied During Kill 281 | . . . . . . . 1 . . . . . 85 63 30 91 . . . . . . 11 Successful Hack 354 | . 30 . 3 6 . . 40 . . . . 10 46 6 . 12 . . 20 69 21 26 65 Disable Machine 234 | . . . 9 . . . 9 . . . . 18 9 . 18 45 . . . 27 9 36 54 Anti-Garrison Action 200 | . . . . . . . 200 . . . . . . . . . . . . . . . . Destroy Structure 815 | . . . 2 11 1 . 79 . . . . 58 30 36 10 44 . 4 22 56 210 42 210 Advance Influence 450 | . . . . . . . . . . . . 450 . . . . . . . . . . . Partial Spotted 30 | . . . . . . . . . . . . . . . . . . . . . 30 . . Lose Combat Pursuer 555 | . 15 . 45 . . . 30 . . . 45 . 15 . . . . . . 15 60 15 315 Active Sensor Use 1200 | . . . . . . . . . . . . . . . . . . . . 200 500 200 300 Influence Decreases 9570 | 20 347 97 200 513 162 . 1047 141 100 . 165 442 1000 208 135 461 167 34 330 828 1027 874 1272 Entered New Map 1611 | . . 66 . 76 32 . . 32 . . . 32 196 . 45 54 147 34 129 . 52 444 272 Time Decay 6891 | 20 347 31 200 400 130 . 877 109 100 . 155 410 643 168 70 327 20 . 201 828 825 370 660 Search Patrol Dispatched 100 | . . . . . . . . . . . . . . . . . . . . . . . 100 Lost Part 540 | . . . . . . . 120 . . . 10 . 10 . . . . . . . 150 50 200 Lost Ally 428 | . . . . 37 . . 50 . . . . . 151 40 20 80 . . . . . 10 40 Squads Dispatched 75 | . 2 . 1 3 . . 12 . . . . 6 . . . 5 . 2 5 9 16 7 7 Investigation 29 | . 2 . 1 . . . 8 . . . . 4 . . . 1 . . . 2 5 2 4 Extermination 18 | . . . . . . . 3 . . . . 2 . . . 1 . . . 4 4 2 2 Reinforcement 23 | . . . . 3 . . . . . . . . . . . 2 . 2 5 3 6 2 . Assault 3 | . . . . . . . . . . . . . . . . . . . . . 1 1 1 Garrison 2 | . . . . . . . 1 . . . . . . . . 1 . . . . . . . Intercept . | . . . . . . . . . . . . . . . . . . . . . . . . Searches Triggered 1 | . . . . . . . . . . . . . . . . . . . . . . . 1 Construction Impeded . | . . . . . . . . . . . . . . . . . . . . . . . . Haulers Reinforced 1 | . . . . . . . . . . . . . . . . . . . 1 . . . . Active Scanning Responses 12 | . . . . . . . . . . . . . . . . . . . . 2 5 2 3 Cargo Convoy Interrupts 1 | . . . . . . . . . . . . . . . . . . . . . 1 . . Stealth | -11 -10 -10 -9 -9 -9 -9 -6 -6 -6 -6 -5 -5 -5 -5 -5 -5 -4 -4 -3 -3 -2 -2 -2 --------- Run | Yrd Mat Min Mat Sto Rec Scr Fac Low Low Zio Pro Fac Ext Cet Arc Hub Fac DSF Res Qua Res Tes Frg Distress Signals 29 | . . . 4 5 . . . . . . 1 . 1 2 . 2 . . 5 3 5 . 1 Communications Jammed . | . . . . . . . . . . . . . . . . . . . . . . . . Distress Signals . | . . . . . . . . . . . . . . . . . . . . . . . . Times Spotted 353 | . 19 . 17 21 3 . 35 3 6 . 11 7 25 10 2 21 . 7 3 33 61 15 54 Peak Tracking Total 17 | . 7 . 7 4 2 . 6 3 4 . 6 5 5 5 1 5 . 2 1 5 9 4 17 Tactical Retreats 18 | . 1 . 2 . . . 2 . . . 1 . 1 . . . . . . 1 3 1 6 Traps | -11 -10 -10 -9 -9 -9 -9 -6 -6 -6 -6 -5 -5 -5 -5 -5 -5 -4 -4 -3 -3 -2 -2 -2 ------- Run | Yrd Mat Min Mat Sto Rec Scr Fac Low Low Zio Pro Fac Ext Cet Arc Hub Fac DSF Res Qua Res Tes Frg Traps Triggered 10 | . 1 . 1 . . . 1 . . . . 1 . . . 1 . 1 1 . . . 3 Indirectly . | . . . . . . . . . . . . . . . . . . . . . . . . Trap Hack Attempts . | . . . . . . . . . . . . . . . . . . . . . . . . Triggered . | . . . . . . . . . . . . . . . . . . . . . . . . Disarmed . | . . . . . . . . . . . . . . . . . . . . . . . . Reprogrammed . | . . . . . . . . . . . . . . . . . . . . . . . . Reused . | . . . . . . . . . . . . . . . . . . . . . . . . Traps Extracted . | . . . . . . . . . . . . . . . . . . . . . . . . Installed . | . . . . . . . . . . . . . . . . . . . . . . . . Triggered . | . . . . . . . . . . . . . . . . . . . . . . . . Machines | -11 -10 -10 -9 -9 -9 -9 -6 -6 -6 -6 -5 -5 -5 -5 -5 -5 -4 -4 -3 -3 -2 -2 -2 ---------- Run | Yrd Mat Min Mat Sto Rec Scr Fac Low Low Zio Pro Fac Ext Cet Arc Hub Fac DSF Res Qua Res Tes Frg Machines Disabled 29 | . . . 1 . . . 1 . . 3 . 2 1 . 2 5 . . . 3 1 4 6 Max in Single Turn 2 | . . . 1 . . . 1 . . 1 . 1 . . 1 1 . . . 1 1 1 2 Garrison Access 2 | . . . . . . . 1 . . . . . . . . 1 . . . . . . . Network Hub 1 | . . . . . . . . . . . . . . . . 1 . . . . . . . Machines Repaired . | . . . . . . . . . . . . . . . . . . . . . . . . Machines Dismantled 4 | . . . . . . . . . . 3 . . . . . 1 . . . . . . . Machines Sabotaged . | . . . . . . . . . . . . . . . . . . . . . . . . Overloaded Fab Kills . | . . . . . . . . . . . . . . . . . . . . . . . . Hacking | -11 -10 -10 -9 -9 -9 -9 -6 -6 -6 -6 -5 -5 -5 -5 -5 -5 -4 -4 -3 -3 -2 -2 -2 --------- Run | Yrd Mat Min Mat Sto Rec Scr Fac Low Low Zio Pro Fac Ext Cet Arc Hub Fac DSF Res Qua Res Tes Frg Machines Accessed 103 | . 5 . 3 6 4 12 15 1 . 1 . 6 13 2 1 4 1 . 3 11 3 5 7 Terminals 51 | . 3 . 2 5 . . 4 . . . . 1 12 2 . 3 1 . 1 7 1 3 6 Fabricators 3 | . . . . . . . 1 . . . . . . . . . . . 1 . . 1 . Repair Stations 10 | . 1 . . 1 . . 1 . . . . 1 1 . . . . . . 2 1 1 1 Recycling Units 14 | . 1 . 1 . 2 . 7 . . . . 3 . . . . . . . . . . . Scanalyzers 6 | . . . . . . . 1 . . . . 1 . . . . . . 1 2 1 . . Garrison Access 2 | . . . . . . . 1 . . . . . . . . 1 . . . . . . . Total Hacks 369 | . 27 . 10 11 26 99 36 1 . 6 . 14 23 4 1 9 1 . 12 35 8 19 27 Successful 266 | . 17 . 5 6 26 99 26 1 . 6 . 10 13 1 1 5 1 . 5 22 2 8 12 Failed 102 | . 10 . 5 5 . . 10 . . . . 4 10 3 . 4 . . 6 13 6 11 15 Catastrophic 17 | . 2 . . . . . 1 . . . . . . 1 . 1 . . 2 3 2 2 3 Database Lockouts 1 | . . . . . . . . . . . . . . . . . . . 1 . . . . Manual 113 | . 16 . 6 2 . . 19 . . . . 5 6 1 . 6 . . 11 12 5 10 14 Terminals 149 | . 15 . 8 9 . . 11 . . . . 1 21 4 . 8 1 . 8 23 3 15 22 Fabricators 5 | . . . . . . . 2 . . . . . . . . . . . 1 . . 2 . Repair Stations 37 | . 10 . . 2 . . 3 . . . . 3 2 . . . . . . 7 3 2 5 Recycling Units 28 | . 2 . 2 . 2 . 14 . . . . 8 . . . . . . . . . . . Scanalyzers 15 | . . . . . . . 3 . . . . 2 . . . . . . 3 5 2 . . Garrison Access 4 | . . . . . . . 3 . . . . . . . . 1 . . . . . . . Terminal Hacks 176 | . 4 . 1 4 24 99 3 1 . 6 . 1 9 1 1 1 1 . 2 10 . 3 5 Record 128 | . . . . . 24 95 1 . . . . . . 1 1 . . . . 5 . . 1 Part Schematic 6 | . . . . . . . . . . 6 . . . . . . . . . . . . . Robot Analysis 11 | . 3 . 1 . . 4 . . . . . . 1 . . . . . 2 . . . . Prototype ID Bank 3 | . . . . 1 . . . . . . . . . . . . . . . 2 . . . Open Door 13 | . . . . 3 . . . 1 . . . 1 8 . . . . . . . . . . Open DSF 1 | . . . . . . . . . . . . . . . . . 1 . . . . . . Level Access Points 2 | . . . . . . . . . . . . . . . . 1 . . . . . . 1 Branch Access Points 2 | . 1 . . . . . . . . . . . . . . . . . . . . 1 . Emergency Access Points 1 | . . . . . . . . . . . . . . . . . . . . 1 . . . Recycling Unit Index 1 | . . . . . . . . . . . . . . . . . . . . . . . 1 Alert Level 2 | . . . . . . . . . . . . . . . . . . . . 1 . . 1 Locate Traps 4 | . . . . . . . 2 . . . . . . . . . . . . 1 . 1 . Recall Extermination 1 | . . . . . . . . . . . . . . . . . . . . . . . 1 Zone Layout 1 | . . . . . . . . . . . . . . . . . . . . . . 1 . Fabricator Hacks 2 | . . . . . . . . . . . . . . . . . . . . . . 2 . Network Status 1 | . . . . . . . . . . . . . . . . . . . . . . 1 . Load Schematic 1 | . . . . . . . . . . . . . . . . . . . . . . 1 . Repair Station Hacks 25 | . 8 . . 2 . . 2 . . . . 2 1 . . . . . . 5 . 1 4 Scan Component 14 | . 4 . . 1 . . 1 . . . . 1 1 . . . . . . 3 . 1 2 Repair 11 | . 4 . . 1 . . 1 . . . . 1 . . . . . . . 2 . . 2 Recycling Unit Hacks 12 | . 1 . 2 . 2 . 5 . . . . 2 . . . . . . . . . . . Report Inventory 11 | . 1 . 1 . 2 . 5 . . . . 2 . . . . . . . . . . . Retrieve Components 1 | . . . 1 . . . . . . . . . . . . . . . . . . . . Scanalyzer 9 | . . . . . . . 2 . . . . 2 . . . . . . 2 3 . . . Insert Component 2 | . . . . . . . . . . . . . . . . . . . . 2 . . . Retrieve Study 7 | . . . . . . . 2 . . . . 2 . . . . . . 2 1 . . . Garrison Access Hacks 1 | . . . . . . . . . . . . . . . . 1 . . . . . . . Seal Access 1 | . . . . . . . . . . . . . . . . 1 . . . . . . . Unauthorized Hacks 41 | . 4 . 2 . . . 14 . . . . 3 3 . . 3 . . 1 4 2 2 3 Terminals 27 | . 3 . 2 . . . 5 . . . . . 3 . . 3 . . 1 4 1 2 3 Track 2 | . . . . . . . 1 . . . . . . . . . . . . 1 . . . Assimilate 1 | . . . . . . . . . . . . . . . . . . . . . . 1 . Botnet 23 | . 3 . 2 . . . 3 . . . . . 3 . . 3 . . 1 3 1 1 3 Operators 1 | . . . . . . . 1 . . . . . . . . . . . . . . . . Fabricators 1 | . . . . . . . 1 . . . . . . . . . . . . . . . . Report 1 | . . . . . . . 1 . . . . . . . . . . . . . . . . Repair Stations 1 | . . . . . . . . . . . . . . . . . . . . . 1 . . Mechanics 1 | . . . . . . . . . . . . . . . . . . . . . 1 . . Recycling Units 11 | . 1 . . . . . 7 . . . . 3 . . . . . . . . . . . Recyclers 1 | . 1 . . . . . . . . . . . . . . . . . . . . . . Fedlink 10 | . . . . . . . 7 . . . . 3 . . . . . . . . . . . Scanalyzers . | . . . . . . . . . . . . . . . . . . . . . . . . Garrison Access 1 | . . . . . . . 1 . . . . . . . . . . . . . . . . Jam 1 | . . . . . . . 1 . . . . . . . . . . . . . . . . Data Cores Recovered 1 | . . . . . . . . . . . . . . . . . . . . . . . 1 Used . | . . . . . . . . . . . . . . . . . . . . . . . . Hacking Detections 66 | . 5 . 3 5 1 . 13 . . . . 3 7 1 . 3 . . 3 8 3 4 7 Full Trace Events 4 | . 1 . 1 . . . . . . . . 1 . . . . . . . . . . 1 Feedback Events . | . . . . . . . . . . . . . . . . . . . . . . . . Feedback Blocked . | . . . . . . . . . . . . . . . . . . . . . . . . Robot Schematics Acquired 5 | . . . . . . . . . . 3 . . . . . . . . . 2 . . . Robots Built . | . . . . . . . . . . . . . . . . . . . . . . . . Authchips . | . . . . . . . . . . . . . . . . . . . . . . . . Time . | . . . . . . . . . . . . . . . . . . . . . . . . Total Robot Build Rating . | . . . . . . . . . . . . . . . . . . . . . . . . Part Schematics Acquired 28 | . . . . . . . . . . 20 . . . . . . . . . 8 . . . Parts Built . | . . . . . . . . . . . . . . . . . . . . . . . . Authchips . | . . . . . . . . . . . . . . . . . . . . . . . . Time . | . . . . . . . . . . . . . . . . . . . . . . . . Total Part Build Rating . | . . . . . . . . . . . . . . . . . . . . . . . . Part Studies Acquired 7 | . . . . . . . 2 . . . . 2 . . . . . . 2 1 . . . Parts Repaired 10 | . 4 . . 1 . . 1 . . . . 1 . . . . . . . 2 . . 1 Time 330 | . 110 . . 26 . . 16 . . . . 19 . . . . . . . 79 . . 80 Parts Recycled . | . . . . . . . . . . . . . . . . . . . . . . . . Recycled Matter . | . . . . . . . . . . . . . . . . . . . . . . . . Retrieved Matter . | . . . . . . . . . . . . . . . . . . . . . . . . Retrieved Components 7 | . . . 7 . . . . . . . . . . . . . . . . . . . . Parts Scanalyzed . | . . . . . . . . . . . . . . . . . . . . . . . . Part Schematics Acquired . | . . . . . . . . . . . . . . . . . . . . . . . . Parts Damaged . | . . . . . . . . . . . . . . . . . . . . . . . . Bothacking | -11 -10 -10 -9 -9 -9 -9 -6 -6 -6 -6 -5 -5 -5 -5 -5 -5 -4 -4 -3 -3 -2 -2 -2 ------------ Run | Yrd Mat Min Mat Sto Rec Scr Fac Low Low Zio Pro Fac Ext Cet Arc Hub Fac DSF Res Qua Res Tes Frg Used RIF Installer . | . . . . . . . . . . . . . . . . . . . . . . . . Robots Hacked 31 | . . . . . 2 16 5 . . . . 1 1 1 . . . . . 3 . 1 1 Non-combat 10 | . . . . . 1 3 5 . . . . 1 . . . . . . . . . . . Combat 17 | . . . . . 1 13 . . . . . . 1 1 . . . . . . . . 1 Robot Hacks Applied 31 | . . . . . 2 17 8 . . . . 1 1 1 . . . . . . . . 1 parse_system 23 | . . . . . 2 17 1 . . . . . 1 1 . . . . . . . . 1 find_chute 8 | . . . . . . . 7 . . . . 1 . . . . . . . . . . . Manual 4 | . . . . . . . . . . . . . . . . . . . . 3 . 1 . Relay Couplers Released 4 | . . . . . . . . . . . . . . . . . . . . 4 . . . Programmers 4 | . . . . . . . . . . . . . . . . . . . . 4 . . . Fabnet Peak Effective % . | . . . . . . . . . . . . . . . . . . . . . . . . Robots Rewired 15 | . . . . . 8 . . . . . . . 7 . . . . . . . . . . Allies Hacked . | . . . . . . . . . . . . . . . . . . . . . . . . Hacks Repelled . | . . . . . . . . . . . . . . . . . . . . . . . . Allies | -11 -10 -10 -9 -9 -9 -9 -6 -6 -6 -6 -5 -5 -5 -5 -5 -5 -4 -4 -3 -3 -2 -2 -2 -------- Run | Yrd Mat Min Mat Sto Rec Scr Fac Low Low Zio Pro Fac Ext Cet Arc Hub Fac DSF Res Qua Res Tes Frg Total Allies 36 | . . . . . 8 . . . . . . . 20 5 . . . . . . . 1 2 Largest Group 12 | . . . . . 8 8 8 . . . . . 12 10 7 5 . . . . . 1 2 Highest-Rated Group 787 | . . . . . 122 122 122 . . . . . 365 787 484 291 . . . . . 10 192 Highest-Rated Ally 159 | . . . . . 27 27 27 . . . . . 159 159 159 96 . . . . . 10 96 Initial UFD Resources 76 | . . . . . . . 23 47 47 47 49 49 65 65 65 65 69 69 72 72 76 76 76 Total Orders 6 | . . . . 1 . 4 1 . . . . . . . . . . . . . . . . STAY 3 | . . . . . . 2 1 . . . . . . . . . . . . . . . . FOLLOW 2 | . . . . . . 2 . . . . . . . . . . . . . . . . . EXPLORE 1 | . . . . 1 . . . . . . . . . . . . . . . . . . . Ally Attacks 309 | . . . . . . . 17 . . . . . 127 58 33 60 . . . . . . 14 Total Damage 6952 | . . . . . . . 343 . . . . . 2143 1436 586 1900 . . . . . . 544 Kills 38 | . . . . . . . 3 . . . . . 13 8 4 8 . . . . . . 2 Allies Corrupted . | . . . . . . . . . . . . . . . . . . . . . . . . Allies Melted . | . . . . . . . . . . . . . . . . . . . . . . . . Intel | -11 -10 -10 -9 -9 -9 -9 -6 -6 -6 -6 -5 -5 -5 -5 -5 -5 -4 -4 -3 -3 -2 -2 -2 ------- Run | Yrd Mat Min Mat Sto Rec Scr Fac Low Low Zio Pro Fac Ext Cet Arc Hub Fac DSF Res Qua Res Tes Frg Active Infowar (turns) 24529 | 12 501 . 548 896 1171 5199 1927 381 497 1705 933 828 1848 657 141 797 45 226 580 1839 1859 755 1184 Optics 23911 | . . . 465 896 1171 5199 1905 381 497 1705 933 828 1848 657 141 797 45 226 580 1839 1859 755 1184 Sensors 8109 | . . . . . . . 163 381 497 1701 933 801 1848 657 141 797 45 145 . . . . . A.S.S. 5950 | . . . . . . . . . . . . . . . . . . 80 580 1839 1694 755 1002 IFF 1285 | . . . . . . . 1285 . . . . . . . . . . . . . . . . Terrain 2187 | . . . . . . . . . . . . 262 1848 77 . . . . . . . . . Structural 4213 | . . . . . . 135 1483 381 308 1705 201 . . . . . . . . . . . . Seismic 596 | 12 501 . 83 . . . . . . . . . . . . . . . . . . . . Jamming 360 | . . . . . . . . . . . 360 . . . . . . . . . . . . Robot Analysis Total 11 | . 3 . 1 . . 4 . . . . . . 1 . . . . . 2 . . . . Derelict Logs Recovered 3 | . . . . . . . . . 1 . 2 . . . . . . . . . . . . Drone Launches 22 | . . . . 22 . . . . . . . . . . . . . . . . . . . Drone Recoveries 6 | . . . . 6 . . . . . . . . . . . . . . . . . . . Exploration | -11 -10 -10 -9 -9 -9 -9 -6 -6 -6 -6 -5 -5 -5 -5 -5 -5 -4 -4 -3 -3 -2 -2 -2 ------------- Run | Yrd Mat Min Mat Sto Rec Scr Fac Low Low Zio Pro Fac Ext Cet Arc Hub Fac DSF Res Qua Res Tes Frg Turns Passed 25375 | 222 868 111 548 896 1171 5199 1942 381 497 1705 933 828 1848 657 141 797 45 226 580 1839 1859 755 1327 Spaces Moved 12932 | 107 352 65 259 355 660 3322 884 224 259 1008 392 412 978 215 70 392 27 84 316 819 619 357 756 Core 441 | 5 . . . . . 220 . . . . . . . . . . . . . . . . 216 Treads 12491 | 102 352 65 259 355 660 3102 884 224 259 1008 392 412 978 215 70 392 27 84 316 819 619 357 540 Legs . | . . . . . . . . . . . . . . . . . . . . . . . . Wheels . | . . . . . . . . . . . . . . . . . . . . . . . . Hover . | . . . . . . . . . . . . . . . . . . . . . . . . Flight . | . . . . . . . . . . . . . . . . . . . . . . . . Fastest Speed 50 | 50 160 160 160 160 160 50 160 160 160 160 160 160 160 160 160 160 165 161 163 163 161 158 50 Average Speed 157 | 154 160 160 160 160 160 152 160 160 160 160 160 160 160 212 160 162 165 163 163 163 165 159 128 Slowest Speed 240 | 160 160 160 160 160 160 160 160 160 160 160 160 160 240 240 160 163 165 165 163 163 173 161 170 Overloaded Moves . | . . . . . . . . . . . . . . . . . . . . . . . . Propulsion Burnouts . | . . . . . . . . . . . . . . . . . . . . . . . . Robots Hopped . | . . . . . . . . . . . . . . . . . . . . . . . . Potential Cave-ins . | . . . . . . . . . . . . . . . . . . . . . . . . Cave-ins Triggered . | . . . . . . . . . . . . . . . . . . . . . . . . Exploration Rate (%) 49 | 4 49 20 19 69 88 95 26 55 60 88 63 9 85 73 80 45 2 78 19 63 19 56 28 Regions Visited 23 Branch Regions 15 Pre-discovered Areas 7 | . . . . . . 5 1 . . 1 . . . . . . . . . . . . . Known Exits Taken 21 | . 1 1 1 1 1 1 1 1 1 1 1 1 1 1 1 1 1 . 1 1 1 1 . Unknown Exits Taken 1 | 1 . . . . . . . . . . . . . . . . . . . . . . . Scrap Searched 12 | . . . . . . 2 . 1 3 3 3 . . . . . . . . . . . . Spaces Dug 104 | . . . 3 11 . . 18 . . . . 1 1 . . . . . 7 6 32 8 17 Terrain Destroyed 390 | . . . 3 11 . . 97 21 36 . 21 28 2 . 1 15 . 2 10 25 62 13 43 Melee 2 | . . . . . . . 1 . . . . 1 . . . . . . . . . . . Projectile 158 | . . . . . . . . . . . . . 2 . 1 15 . 2 10 25 61 13 29 AOE 229 | . . . 3 11 . . 96 21 36 . 21 27 . . . . . . . . . . 14 Terrain Rammed . | . . . . . . . . . . . . . . . . . . . . . . . . Walls Destroyed . | . . . . . . . . . . . . . . . . . . . . . . . . Machines Disabled . | . . . . . . . . . . . . . . . . . . . . . . . . Actions | -11 -10 -10 -9 -9 -9 -9 -6 -6 -6 -6 -5 -5 -5 -5 -5 -5 -4 -4 -3 -3 -2 -2 -2 --------- Run | Yrd Mat Min Mat Sto Rec Scr Fac Low Low Zio Pro Fac Ext Cet Arc Hub Fac DSF Res Qua Res Tes Frg Total 16568 | 141 562 73 333 569 741 3439 1192 241 311 1045 666 536 1214 398 94 493 28 146 367 1233 1231 489 1026 Wait 2058 | 1 128 5 11 76 10 68 77 12 23 2 252 74 127 146 19 52 . 24 30 321 384 67 149 Move 12909 | 106 351 64 258 354 659 3321 883 223 258 1007 391 411 977 214 69 391 26 83 315 818 618 356 756 Hop . | . . . . . . . . . . . . . . . . . . . . . . . . Pick Up 148 | 4 12 2 7 8 6 13 28 . 3 1 1 5 14 6 1 5 . 1 2 8 11 3 7 Fast Attach 109 | 7 3 . 2 7 3 5 12 . . 2 1 4 6 6 . 3 . 3 1 1 22 7 14 Attach 68 | . . . 2 . 1 1 20 . 3 . 1 2 1 . . . 2 1 2 1 13 3 15 Detach 18 | . . . . . 1 . 7 . . . . . 1 . . . . 2 . . 2 1 4 Swap 136 | 1 5 . 7 15 2 4 37 2 9 3 6 14 5 2 . 3 . 4 . 10 2 4 1 Drop 177 | . 7 2 10 24 5 9 18 . . 3 1 6 20 14 1 9 . 5 3 7 24 3 6 Fire 754 | 15 51 . 34 63 18 . 96 4 9 . 13 18 24 10 4 23 . 23 14 67 150 45 73 Melee 37 | . . . . . 2 18 9 . 6 . . 2 . . . . . . . . . . . Ram . | . . . . . . . . . . . . . . . . . . . . . . . . Kick . | . . . . . . . . . . . . . . . . . . . . . . . . Crush 51 | 7 5 . 2 13 7 . 5 . . . . . 2 . . 4 . . . . 5 . 1 Escape Stasis 2 | . . . . . . . . . . . . . 2 . . . . . . . . . . Rewire 64 | . . . . 2 27 . . . . . . . 35 . . . . . . . . . . Trap . | . . . . . . . . . . . . . . . . . . . . . . . . Miscellaneous 37 | . . . . 7 . . . . . 27 . . . . . 3 . . . . . . . Route ------- -11/Scrapyard -10/Materials (discovered 3 exits: *Mat / *Min x2) -10/Mines -9/Materials -9/Storage (discovered 2 exits: *Mat / *Rec) -9/Recycling (discovered 2 exits: *Fac / *Scr) -9/Scraptown (discovered 2 exits: *Fac x2) -6/Factory (discovered 6 exits: *Fac x4 / *Low x2) -6/Lower Caves -6/Lower Caves -6/Zion (discovered 2 exits: *Dee / *Pro) -5/Proximity Caves -5/Factory (discovered 2 exits: Fac / *Ext) -5/Extension (discovered 2 exits: *Fac / *Cet) -5/Cetus (discovered 2 exits: *Fac / *Arc) -5/Archives (discovered 2 exits: *Fac / *Hub) -5/Hub_04(d) (discovered 4 exits: *Fac x4) -4/Factory -4/DSF -3/Research (discovered 3 exits: Res / *Qua x2) -3/Quarantine -2/Research (discovered 3 exits: *Acc x2 / *Tes) -2/Testing (discovered 3 exits: *Acc / *Sec / *Frg) -2/Protoforge (discovered 1 exit: Acc) History --------- Turn | Location | Event 5 | -11/Scrapyard | Discovered new exit (range 16) 223 | -11/Scrapyard | Entered Materials 311 | -10/Materials | Build established: Mutant 504 | -10/Materials | Discovered new exit (range 13) 549 | -10/Materials | Repaired Lgt. Treads 583 | -10/Materials | Repaired Particle Gun 644 | -10/Materials | Repaired Med. Laser 745 | -10/Materials | Core integrity fell below 50% 778 | -10/Materials | Destroyed 10 combat bots 803 | -10/Materials | Discovered new exit (range 15) 831 | -10/Materials | Identified exit to Materials 881 | -10/Materials | Identified exit to Mines 992 | -10/Materials | Repaired Lgt. Treads 1091 | -10/Materials | Entered Mines 1098 | -10/Mines | Received a Rocket Launcher from a helpful Derelict 1114 | -10/Mines | A weapon hastily lodged in a ceiling crevice suddenly fell to the ground 1195 | -10/Mines | Discovered exit to Materials (range 5) 1202 | -10/Mines | Entered Materials 1202 | -9/Materials | Evolved 2 slots: Utility x2 1204 | -9/Materials | Discovered new exit (range 8) 1232 | -9/Materials | Identified exit to Storage 1750 | -9/Materials | Entered Storage 1873 | -9/Storage | Repaired Lgt. Treads 2142 | -9/Storage | Lost 3 allies 2473 | -9/Storage | Discovered new exit (range 6) 2479 | -9/Storage | Identified exit to Materials 2640 | -9/Storage | Used back door to open Recycling access 2640 | -9/Storage | Discovered new exit (range 5) 2644 | -9/Storage | Identified exit to Recycling 2646 | -9/Storage | Entered Recycling 2647 | -9/Recycling | Met a Zionite searching for Scraptown 2782 | -9/Recycling | Discovered new exit (range 3) 2786 | -9/Recycling | Identified exit to Factory 3705 | -9/Recycling | Scanned before Scraplab entrance 3785 | -9/Recycling | Discovered new exit (range 3) 3787 | -9/Recycling | Identified exit to Scraptown 3817 | -9/Recycling | Entered Scraptown 3817 | -9/Scraptown | Accompanied by 8 allies 3876 | -9/Scraptown | Build established: Commander-Mutant 4266 | -9/Scraptown | Heard Great Nut preacher, LISTEN AND RECITE! 4397 | -9/Scraptown | Visited Awakened 4453 | -9/Scraptown | Visited SPCMW 4490 | -9/Scraptown | Visited Red Mages 4906 | -9/Scraptown | Visited Fellowship of the Rings 4946 | -9/Scraptown | Visited Cyclists 5094 | -9/Scraptown | Discovered new exit (range 5) 5101 | -9/Scraptown | Identified exit to Factory 5307 | -9/Scraptown | Visited Shadow of the Wyrm 5379 | -9/Scraptown | Visited Cave Peace 5443 | -9/Scraptown | Visited UFD Registry 5443 | -9/Scraptown | Registered with UFD as "Wrenchripper" 5489 | -9/Scraptown | Entered Cyclist Reading Room 5680 | -9/Scraptown | Visited Scrap Suit Storage 5806 | -9/Scraptown | Visited Analyses Database 5840 | -9/Scraptown | Visited LU-1G1's Boring Crew 5928 | -9/Scraptown | Visited Junk Repository 6301 | -9/Scraptown | Visited Abandonware Association 6316 | -9/Scraptown | Learned abandonware demo "OVRCLOCK.EXE" 6343 | -9/Scraptown | Learned abandonware demo "REVENGE.EXE" 6380 | -9/Scraptown | Visited Derelict Rescue Squad 6388 | -9/Scraptown | Found DRS Beacon 6418 | -9/Scraptown | Visited Research Penetration Think Tank 6592 | -9/Scraptown | Discovered exit to Factory (range 5) 6688 | -9/Scraptown | Visited Scrapoid Pod Storage 6746 | -9/Scraptown | Visited Cartography Club 8285 | -9/Scraptown | Learned location of Mines (-9) 8285 | -9/Scraptown | Learned location of Storage (-9) 8285 | -9/Scraptown | Learned location of Cetus (-5) 8285 | -9/Scraptown | Learned location of Hub_04(d) (-5) 8285 | -9/Scraptown | Learned 16 Materials zone layouts 8285 | -9/Scraptown | Learned 12 Factory zone layouts 8285 | -9/Scraptown | Learned 12 Research zone layouts 8285 | -9/Scraptown | Learned 16 Research zone layouts 8285 | -9/Scraptown | Learned 4 Storage zone layouts 8285 | -9/Scraptown | Learned 8 Lower Caves zone layouts 8285 | -9/Scraptown | Learned 12 Upper Caves zone layouts 8285 | -9/Scraptown | Learned 24 Upper Caves zone layouts 8285 | -9/Scraptown | Learned 24 Proximity Caves zone layouts 8285 | -9/Scraptown | Learned location of 3 exits from Factory 8285 | -9/Scraptown | Learned location of 3 exits from Proximity Caves 8353 | -9/Scraptown | Found Deep Structural Scanner 8915 | -9/Scraptown | Met Optimus 8915 | -9/Scraptown | Accepted into 0bPrime 9016 | -9/Scraptown | Entered Factory 9016 | -6/Factory | Accompanied by 8 allies 9016 | -6/Factory | Evolved 6 slots: Propulsion x2, Utility x3, Weapon x1 9017 | -6/Factory | Identified exit to Lower Caves 9018 | -6/Factory | Identified exit to Factory 9101 | -6/Factory | Loaded intel: 8 recycling unit locations 9136 | -6/Factory | Garrison activated, responded to threat 9170 | -6/Factory | Lost 6 allies 9574 | -6/Factory | Learned location of Protoforge (-2) 9657 | -6/Factory | Build established: Scavenger-Skirmisher 9829 | -6/Factory | Repaired Hrd. Light Armor Plating 10484 | -6/Factory | Spotted B-75 Beast 10542 | -6/Factory | Destroyed B-75 Beast 10564 | -6/Factory | Lost 5 parts (3n1u1w) 10913 | -6/Factory | Discovered exit to Factory (range 19) 10922 | -6/Factory | Found Hvy. Reactive Plating 10958 | -6/Factory | Entered Lower Caves 10959 | -6/Lower Caves | Identified exit to Lower Caves 11083 | -6/Lower Caves | Build established: Skirmisher 11339 | -6/Lower Caves | Entered another Lower Caves area 11617 | -6/Lower Caves | Learned location of 1 exit from Factory 11823 | -6/Lower Caves | Discovered new exit (range 9) 11835 | -6/Lower Caves | Identified exit to Zion 11836 | -6/Lower Caves | Entered Zion 11921 | -6/Zion | Given the Hacking Drone Bay 11922 | -6/Zion | Found Prototype Device 12253 | -6/Zion | Found Prototype Processor 12253 | -6/Zion | Identified Exp. Targeting Computer 12559 | -6/Zion | Learned location of Warlord (-4) 12761 | -6/Zion | Given A8's code to call for help 12949 | -6/Zion | Turned away by Imprinter 13245 | -6/Zion | Discovered new exit (range 7) 13280 | -6/Zion | Saw the warning signs outside the Deep Caves entrance 13282 | -6/Zion | Identified exit to Deep Caves 13507 | -6/Zion | Discovered new exit (range 22) 13539 | -6/Zion | Identified exit to Proximity Caves 13541 | -6/Zion | Entered Proximity Caves 13640 | -5/Proximity Caves | Spotter reported a threat 13686 | -5/Proximity Caves | Spotter reported a threat 13759 | -5/Proximity Caves | Spotter reported a threat 13792 | -5/Proximity Caves | Learned 4 Factory zone layouts 13880 | -5/Proximity Caves | Learned 4 Factory zone layouts 14474 | -5/Proximity Caves | Entered Factory 14474 | -5/Factory | Evolved 2 slots: Utility x2 14475 | -5/Factory | Identified exit to Factory 14476 | -5/Factory | Identified exit to Extension 14680 | -5/Factory | Repaired Hrd. Medium Armor Plating 14748 | -5/Factory | Loaded intel: 8 recycling unit locations 15302 | -5/Factory | Entered Extension 15446 | -5/Extension | Rescued a captive Derelict 15447 | -5/Extension | Rescued a captive Derelict 15503 | -5/Extension | Rescued a captive Derelict 15524 | -5/Extension | Rescued a captive Derelict 15525 | -5/Extension | Rescued a captive Derelict 15689 | -5/Extension | Rescued a captive Derelict 15716 | -5/Extension | Rescued a captive Derelict 15717 | -5/Extension | Rescued a captive Derelict 15746 | -5/Extension | Spotted B-75 Beast 15751 | -5/Extension | Rescued a captive Derelict 15753 | -5/Extension | Rescued a captive Derelict 15808 | -5/Extension | Spotted B-75 Beast 15812 | -5/Extension | Allies destroyed B-75 Beast 15827 | -5/Extension | Allies destroyed B-75 Beast 15851 | -5/Extension | Lost 9 allies 16259 | -5/Extension | Rescued a captive Derelict 16261 | -5/Extension | Rescued a captive Derelict 16806 | -5/Extension | Rescued A7 17095 | -5/Extension | Discovered exit to Factory (range 22) 17095 | -5/Extension | Discovered new exit (range 22) 17141 | -5/Extension | Identified exit to Cetus 17150 | -5/Extension | Entered Cetus 17150 | -5/Cetus | Accompanied by 7 allies (A7) 17155 | -5/Cetus | Acquired a Cetus Manufacturing Module code from A7 17165 | -5/Cetus | Spotted Cetus Guard 17165 | -5/Cetus | Spotted Cetus Guard 17166 | -5/Cetus | Spotted Cetus Guard 17168 | -5/Cetus | Spotted Cetus Guard 17175 | -5/Cetus | Allies destroyed Cetus Guard 17178 | -5/Cetus | Destroyed Cetus Guard 17181 | -5/Cetus | Destroyed Cetus Guard 17189 | -5/Cetus | Destroyed Cetus Guard 17396 | -5/Cetus | Started Cetus Manufacturing Module 17421 | -5/Cetus | Manufactured an Enhanced Grunt 17446 | -5/Cetus | Manufactured an Enhanced Grunt 17471 | -5/Cetus | Manufactured an Enhanced Grunt 17496 | -5/Cetus | Manufactured an Enhanced Grunt 17521 | -5/Cetus | Manufactured an Enhanced Grunt 17548 | -5/Cetus | Discovered new exit (range 21) 17599 | -5/Cetus | Identified exit to Archives 17642 | -5/Cetus | Spotted Cetus Guard 17647 | -5/Cetus | Spotted Cetus Guard 17648 | -5/Cetus | Spotted Cetus Guard 17654 | -5/Cetus | Spotted Cetus Guard 17656 | -5/Cetus | Allies destroyed Cetus Guard 17658 | -5/Cetus | Discovered exit to Factory (range 22) 17666 | -5/Cetus | Allies destroyed Cetus Guard 17670 | -5/Cetus | Allies destroyed Cetus Guard 17671 | -5/Cetus | Allies destroyed Cetus Guard 17696 | -5/Cetus | Lost 3 allies 17703 | -5/Cetus | Met Revision 17 17807 | -5/Cetus | Entered Archives 17807 | -5/Archives | Accompanied by 7 allies (A7) 17870 | -5/Archives | Unable to access archive contents 17878 | -5/Archives | Discovered exit to Factory (range 18) 17894 | -5/Archives | Unable to access archive contents 17900 | -5/Archives | Discovered new exit (range 17) 17912 | -5/Archives | Unable to access archive contents 17937 | -5/Archives | Identified exit to Hub_04(d) 17948 | -5/Archives | Entered Hub_04(d) 17948 | -5/Hub_04(d) | Accompanied by 5 allies 18045 | -5/Hub_04(d) | Build established: Scavenger-Tank 18443 | -5/Hub_04(d) | Spotted B-75 Beast 18459 | -5/Hub_04(d) | Destroyed B-75 Beast 18599 | -5/Hub_04(d) | Garrison activated, responded to threat 18677 | -5/Hub_04(d) | Network Hub disabled 18745 | -5/Hub_04(d) | Entered Factory 18745 | -4/Factory | Evolved 2 slots: Propulsion x1, Utility x1 18790 | -4/Factory | Identified exit to DSF 18790 | -4/Factory | Entered DSF 18809 | -4/DSF | Additional patrols routed to DSF 18902 | -4/DSF | Sterilization system engaged 18922 | -4/DSF | Ambient heat levels rising (+10) 18936 | -4/DSF | Found Active Sensor Suite 18937 | -4/DSF | Ambient heat levels rising (+10) 18952 | -4/DSF | Ambient heat levels rising (+10) 18967 | -4/DSF | Ambient heat levels rising (+10) 18982 | -4/DSF | Ambient heat levels rising (+10) 18990 | -4/DSF | Discovered new exit (range 17) 18997 | -4/DSF | Ambient heat levels rising (+10) 19012 | -4/DSF | Ambient heat levels rising (+10) 19014 | -4/DSF | Identified exit to Research 19016 | -4/DSF | Entered Research 19016 | -3/Research | Evolved 2 slots: Propulsion x1, Utility x1 19017 | -3/Research | Identified exit to Quarantine 19017 | -3/Research | Identified exit to Research 19216 | -3/Research | Revision forces began assault on 0b10 19362 | -3/Research | Central database locked down 19474 | -3/Research | Met up with Revision 17++ 19596 | -3/Research | Entered Quarantine 19685 | -3/Quarantine | Repaired Centrium Heavy Treads 19711 | -3/Quarantine | Repaired Hvy. Reactive Plating 20084 | -3/Quarantine | Scanned by Researcher 20598 | -3/Quarantine | Discovered exit to Research (range 7) 20776 | -3/Quarantine | Identified Hacking Drone Bay 20784 | -3/Quarantine | Found Alien Artifact 20795 | -3/Quarantine | Found Alien Artifact 20858 | -3/Quarantine | Identified Terrabomb (x2) 21435 | -3/Quarantine | Entered Research 21435 | -2/Research | Evolved 2 slots: Power x1, Utility x1 21436 | -2/Research | Identified exit to Testing 21762 | -2/Research | Discovered new exit (range 5) 21766 | -2/Research | Identified exit to Access 22306 | -2/Research | Cargo convoy interrupted 22468 | -2/Research | System corruption reached 10% 22552 | -2/Research | Discovered exit to Access (range 22) 22566 | -2/Research | Found Exp. Targeting Computer 22935 | -2/Research | First assault squad dispatched 23142 | -2/Research | Lost 4 parts (1n2u1w) 23170 | -2/Research | Destroyed 10 combat bots 23280 | -2/Research | Found Active Sensor Suite 23294 | -2/Research | Entered Testing 23302 | -2/Testing | Lost 10 parts (2p2n4u2w) 23317 | -2/Testing | Found Prototype Energy Gun 23317 | -2/Testing | Identified Tachyon Dispersion Ray 23475 | -2/Testing | Unstable Terrabomb Derivative detonated 23619 | -2/Testing | Spotted PX-3EW77WK14S 23664 | -2/Testing | Destroyed PX-3EW77WK14S 23794 | -2/Testing | First assault squad dispatched 23843 | -2/Testing | Watched by a mysterious "MATRIX" hacker 23881 | -2/Testing | Discovered exit to Access (range 20) 23909 | -2/Testing | Spotted Fortress 23958 | -2/Testing | Build established: Scavenger-Skirmisher 23985 | -2/Testing | Lost 3 parts (1p2u) 24036 | -2/Testing | Discovered new exit (range 6) 24036 | -2/Testing | Discovered new exit (range 7) 24042 | -2/Testing | Identified exit to Section 7 24047 | -2/Testing | Identified exit to Protoforge 24049 | -2/Testing | Entered Protoforge 24084 | -2/Protoforge | Enhanced Grunt warped into view, answering call for help 24094 | -2/Protoforge | Enhanced Grunt warped into view, answering call for help 24251 | -2/Protoforge | Found Exp. Thermal Shield 24302 | -2/Protoforge | Superfortress began startup sequence 24543 | -2/Protoforge | Build established: Scavenger-Tank 24848 | -2/Protoforge | Repaired Broken Hvy. Siege Treads 24956 | -2/Protoforge | Spotted Hotshot 25016 | -2/Protoforge | Spotted Hotshot 25025 | -2/Protoforge | Destroyed Hotshot 25030 | -2/Protoforge | Destroyed Hotshot 25049 | -2/Protoforge | First assault squad dispatched 25138 | -2/Protoforge | Used Terrabomb 25138 | -2/Protoforge | Spotted AP7-3 25138 | -2/Protoforge | Spotted AP7-3 25138 | -2/Protoforge | Spotted EXE-6 25138 | -2/Protoforge | Spotted EXE-6 25189 | -2/Protoforge | Core integrity fell below 50% 25231 | -2/Protoforge | Destroyed EXE-6 25233 | -2/Protoforge | Released all parts (8) 25263 | -2/Protoforge | Lost 17 parts (2p4n7u4w) 25280 | -2/Protoforge | Core integrity fell below 20% 25281 | -2/Protoforge | Spotted Hotshot 25281 | -2/Protoforge | Spotted Hotshot 25299 | -2/Protoforge | Search patrols dispatched 25331 | -2/Protoforge | Spotted Hotshot 25331 | -2/Protoforge | Spotted Hotshot 25376 | -2/Protoforge | Destroyed by EXE-6 with Concept XC Strikerail Last Messages --------------- detected, Programmers report to Protoforge Zone 9G. 25336_ Hotshot activates shielding mode. 25355_ Connecting with Terminal... >>Recall(Extermination) Establishing remote squad link... Recalled extermination squad 1NIZ9TKU9X. 25358_ F/V0TFWE II4U79WW OS>parse_system Reading system data... New IDs: Exp. VSS Leg Exp. Optical Array Exp. Core Analyzer Exp. Kinecellerator Exp. Armor Integrity Analyzer Cep. XC Strikerail 25376_ Penetrated by Slug. Map ----- +----------------------------------------------------+ | ??? # """""" #???????????????????????? | |